[Event "9th Amsterdam Science Park A 2019"]
[Site "Amsterdam"]
[Date "2019.07.07"]
[Round "2.12"]
[White "Bosboom, Manuel"]
[Black "Pavlov, Mark"]
[Result "1-0"]
[ECO "A05"]
[WhiteElo "2418"]
[BlackElo "2016"]
[Annotator "NA"]
[PlyCount "91"]
[EventDate "2019.07.06"]
[EventType "swiss"]
[EventCountry "NED"]
[SourceTitle "playchess.com"]
[Source "ChessBase"]
[SourceQuality "1"]
[TimeControl "40/5400+30:1800+30"]

1. Nf3 {[%emt 0:00:02]} Nf6 {[%emt 0:00:00]} 2. g3 {[%emt 0:00:39]} d5 {[%emt 0:00:11]} 3. Bg2 {[%emt 0:00:14]} c6 {[%emt 0:00:43]} 4. d3 {[%emt 0:02:30]} Bg4 {[%emt 0:00:12]} 5. Nbd2 {[%emt 0:00:58]} Nbd7 {[%emt 0:00:37]} 6. e4 {[%emt 0:04:56]} dxe4 {[%emt 0:00:37]} 7. dxe4 {[%emt 0:00:08]} e5 {[%emt 0:00:06]} 8. h3 {[%emt 0:00:13]} Bh5 {[%emt 0:01:32]} 9. O-O Be7 {[%emt 0:05:05]} 10. Qe1 {[%emt 0:03:15]} O-O {[%emt 0:00:12]} 11. Nc4 {[%emt 0:02:26]} Bxf3 {[%emt 0:05:50]} 12. Bxf3 {[%emt 0:00:11]} Qc7 {[%emt 0:00:03]} 13. a4 {[%emt 0:03:13]} Nc5 {[%emt 0:04:06]} 14. Bd2 {[%emt 0:10:42]} Ne6 {[%emt 0:02:28]} 15. Ba5 {[%emt 0:03:32]} b6 {[%emt 0:00:29]} 16. Bc3 {[%emt 0:00:07]} Nd7 {[%emt 0:08:44]} 17. h4 {[%emt 0:13:07]} Bc5 {[%emt 0:05:51]} 18. Kg2 Bd4 19. Bb4 {[%emt 0:08:07]} Bc5 {[%emt 0:06:51]} 20. Bd2 {[%emt 0:01:07]} Nd4 21. Bd1 {[%emt 0:00:30]} a5 {[%emt 0:02:04]} 22. c3 {[%emt 0:05:59]} Ne6 {[%emt 0:00:12]} 23. Bb3 {[%emt 0:05:54]} Nf6 {[%emt 0:04:21]} 24. Qe2 {[%emt 0:02:45]} b5 {[%emt 0:03:52]} 25. Na3 {[%emt 0:06:58]} b4 {[%emt 0:00:25]} 26. Nc2 {[%emt 0:01:53]} bxc3 {[%emt 0:00:15]} 27. bxc3 {[%emt 0:00:04]} Rab8 {[%emt 0:01:39]} 28. Rab1 {[%emt 0:01:28]} Ba7 29. Bg5 {[%emt 0:03:18]} Qe7 {[%emt 0:10:32]} 30. Bxf6 {[%emt 0:03:22]} Qxf6 {[%emt 0:00:29]} 31. Na3 {[%emt 0:00:18]} g5 {[%emt 0:19:17]} 32. Bxe6 {[%emt 0:05:43]} fxe6 {[%emt 0:02:03]} 33. Rxb8 {[%emt 0:00:31]} Rxb8 {[%emt 0:00:18]} 34. hxg5 {[%emt 0:01:05]} Qxg5 {[%emt 0:00:33]} 35. Nc4 {[%emt 0:00:46]} Rd8 {[%emt 0:07:03]} 36. Nxa5 {[%emt 0:01:47]} Rd2 {[%emt 0:01:27]} 37. Qf3 {[%emt 0:01:15]} h5 {[%emt 0:02:20]} 38. Nxc6 {[%emt 0:00:06]} Bc5 {[%emt 0:00:05]} 39. Na5 {[%emt 0:01:26]} Ra2 {[%emt 0:00:49]} 40. Nb3 {[%emt 0:01:13]} Be3 {[%emt 0:01:29]} 41. Kh2 {[%emt 0:34:16]} h4 {[%emt 0:30:29]} 42. Kh3 {[%emt 0:00:56]} hxg3 {[%emt 0:01:40]} 43. Qxe3 {[%emt 0:01:10]} Qh5+ {[%emt 0:02:27]} 44. Kxg3 {[%emt 0:00:36]} Re2 {[%emt 0:00:52]} 45. Qf3 {[%emt 0:01:48]} Qg5+ {[%emt 0:00:38]} 46. Qg4 {[%emt 0:00:41]} 1-0

[Event "9th Amsterdam Science Park A 2019"]
[Site "Amsterdam"]
[Date "2019.07.08"]
[Round "3.1"]
[White "Meshkovs, Nikita"]
[Black "Zwirs, Nico"]
[Result "1/2-1/2"]
[ECO "A05"]
[WhiteElo "2550"]
[BlackElo "2380"]
[Annotator "ChessBase"]
[PlyCount "95"]
[EventDate "2019.07.06"]
[EventType "swiss"]
[EventCountry "NED"]
[SourceTitle "playchess.com"]
[Source "ChessBase"]
[SourceQuality "1"]
[TimeControl "40/5400+30:1800+30"]

1. Nf3 {[%emt 0:01:51]} Nf6 {[%emt 0:00:00]} 2. c4 {[%emt 0:00:09]} g6 {[%emt 0:00:00]} 3. Nc3 {[%emt 0:00:09]} Bg7 {[%emt 0:00:00]} 4. e4 {[%emt 0:00:10]} d6 {[%emt 0:00:02]} 5. d4 {[%emt 0:00:23]} O-O {[%emt 0:00:07]} 6. h3 {[%emt 0:00:02]} e5 {[%emt 0:00:14]} 7. d5 {[%emt 0:00:05]} a5 {[%emt 0:00:04]} 8. g4 {[%emt 0:00:09]} Na6 {[%emt 0:00:11]} 9. Be3 {[%emt 0:00:08]} Nd7 {[%emt 0:00:08]} 10. a3 {[%emt 0:00:12]} Nb6 {[%emt 0:00:11]} 11. Rg1 {[%emt 0:07:47]} Bd7 {[%emt 0:00:33]} 12. b3 {[%emt 0:10:39]} Nc5 {[%emt 0:01:02]} 13. Nd2 {[%emt 0:02:40]} Kh8 {[%emt 0:01:31]} 14. Be2 {[%emt 0:19:04]} c6 {[%emt 0:03:04]} 15. b4 {[%emt 0:06:12]} Nca4 {[%emt 0:08:14]} 16. Nxa4 {[%emt 0:16:57]} Nxa4 {[%emt 0:00:13]} 17. Rc1 {[%emt 0:12:15]} axb4 {[%emt 0:24:34]} 18. axb4 {[%emt 0:00:10]} f5 {[%emt 0:00:28]} 19. gxf5 {[%emt 0:01:33]} gxf5 {[%emt 0:01:11]} 20. exf5 {[%emt 0:00:04]} Bxf5 {[%emt 0:00:33]} 21. Qb3 {[%emt 0:00:35]} Qd7 {[%emt 0:22:09]} 22. Bg4 {[%emt 0:01:54]} Qf7 {[%emt 0:15:46]} 23. Ke2 {[%emt 0:06:08]} Bg6 {[%emt 0:13:30]} 24. Be6 {[%emt 0:06:29]} Qe8 {[%emt 0:00:53]} 25. f3 {[%emt 0:01:23]} Bf7 {[%emt 0:05:03]} 26. Bxf7 {[%emt 0:01:47]} Qxf7 {[%emt 0:00:01]} 27. Rg3 {[%emt 0:00:48]} e4 {[%emt 0:02:09]} 28. Nxe4 {[%emt 0:00:09]} Be5 {[%emt 0:00:21]} 29. Rcg1 {[%emt 0:01:53]} b5 {[%emt 0:01:10]} 30. Nxd6 {[%emt 0:02:07]} Qd7 {[%emt 0:00:39]} 31. Ne4 {[%emt 0:00:42]} bxc4 {[%emt 0:00:11]} 32. Qxc4 {[%emt 0:00:51]} Qxd5 {[%emt 0:00:31]} 33. Qxd5 {[%emt 0:00:21]} cxd5 {[%emt 0:00:01]} 34. Rg5 {[%emt 0:00:31]} Nc3+ {[%emt 0:01:39]} 35. Nxc3 {[%emt 0:00:22]} Bxc3 {[%emt 0:00:01]} 36. Rxd5 {[%emt 0:00:39]} Ra2+ {[%emt 0:00:35]} 37. Kd3 {[%emt 0:00:39]} Ra3 {[%emt 0:00:48]} 38. Kc4 {[%emt 0:00:21]} Bg7 {[%emt 0:00:18]} 39. Bc5 {[%emt 0:00:40]} Rc3+ {[%emt 0:00:32]} 40. Kb5 {[%emt 0:00:01]} Rb8+ {[%emt 0:00:07]} 41. Kc6 {[%emt 0:02:41]} Rxf3 {[%emt 0:00:10]} 42. Rd7 {[%emt 0:04:17]} Be5 {[%emt 0:04:33]} 43. Rg5 {[%emt 0:02:55]} Rc8+ {[%emt 0:06:39]} 44. Kd5 {[%emt 0:01:59]} Rd3+ {[%emt 0:01:42]} 45. Ke6 {[%emt 0:10:55]} Rc6+ {[%emt 0:02:26]} 46. Kxe5 {[%emt 0:02:52]} Rxd7 {[%emt 0:00:27]} 47. h4 {[%emt 0:00:31]} h6 {[%emt 0:03:23]} 48. Ke4 1/2-1/2

[Event "9th Amsterdam Science Park A 2019"]
[Site "Amsterdam"]
[Date "2019.07.08"]
[Round "3.2"]
[White "Ulybin, Mikhail"]
[Black "Gleizerov, Evgeny"]
[Result "1/2-1/2"]
[ECO "B52"]
[WhiteElo "2469"]
[BlackElo "2498"]
[Annotator "ChessBase"]
[PlyCount "29"]
[EventDate "2019.07.06"]
[EventType "swiss"]
[EventCountry "NED"]
[SourceTitle "playchess.com"]
[Source "ChessBase"]
[SourceQuality "1"]
[TimeControl "40/5400+30:1800+30"]

1. e4 {[%emt 0:01:19]} c5 {[%emt 0:00:16]} 2. Nf3 {[%emt 0:00:37]} d6 {[%emt 0:00:24]} 3. Bb5+ {[%emt 0:00:59]} Bd7 {[%emt 0:01:03]} 4. Bxd7+ {[%emt 0:01:03]} Qxd7 {[%emt 0:00:58]} 5. O-O {[%emt 0:00:55]} Nc6 {[%emt 0:00:53]} 6. c3 {[%emt 0:00:48]} Nf6 {[%emt 0:00:38]} 7. Re1 {[%emt 0:01:47]} e6 {[%emt 0:00:40]} 8. d4 {[%emt 0:00:41]} cxd4 {[%emt 0:00:12]} 9. cxd4 {[%emt 0:00:22]} d5 {[%emt 0:00:41]} 10. e5 {[%emt 0:00:45]} Ne4 {[%emt 0:00:19]} 11. Nbd2 {[%emt 0:01:12]} Nxd2 {[%emt 0:00:56]} 12. Bxd2 {[%emt 0:00:39]} Be7 {[%emt 0:00:08]} 13. Rc1 {[%emt 0:01:09]} O-O {[%emt 0:00:17]} 14. a3 {[%emt 0:01:31]} Rac8 {[%emt 0:00:29]} 15. Rc3 {[%emt 0:02:39]} 1/2-1/2

[Event "9th Amsterdam Science Park A 2019"]
[Site "Amsterdam"]
[Date "2019.07.08"]
[Round "3.3"]
[White "Van der Lende, Ilias"]
[Black "Arnaudov, G. Petar"]
[Result "1/2-1/2"]
[ECO "C45"]
[WhiteElo "2350"]
[BlackElo "2478"]
[Annotator "ChessBase"]
[PlyCount "75"]
[EventDate "2019.07.06"]
[EventType "swiss"]
[EventCountry "NED"]
[SourceTitle "playchess.com"]
[Source "ChessBase"]
[SourceQuality "1"]
[TimeControl "40/5400+30:1800+30"]

1. e4 {[%emt 0:00:00]} e5 {[%emt 0:00:05]} 2. Nf3 {[%emt 0:00:00]} Nc6 {[%emt 0:00:07]} 3. d4 {[%emt 0:00:53]} exd4 {[%emt 0:00:05]} 4. Nxd4 {[%emt 0:00:03]} Bc5 {[%emt 0:00:04]} 5. Nxc6 {[%emt 0:00:23]} bxc6 {[%emt 0:00:04]} 6. Bc4 {[%emt 0:02:42]} Qh4 {[%emt 0:00:40]} 7. Qe2 {[%emt 0:05:22]} Nf6 {[%emt 0:05:33]} 8. Nc3 {[%emt 0:05:29]} O-O {[%emt 0:08:04]} 9. h3 {[%emt 0:20:01]} Bb4 {[%emt 0:08:37]} 10. Bd3 {[%emt 0:00:29]} d5 {[%emt 0:00:24]} 11. g3 {[%emt 0:01:45]} Qh5 {[%emt 0:00:13]} 12. Qxh5 {[%emt 0:00:22]} Nxh5 {[%emt 0:00:05]} 13. Bd2 {[%emt 0:03:05]} Nf6 {[%emt 0:05:07]} 14. e5 {[%emt 0:04:27]} Nd7 {[%emt 0:01:08]} 15. f4 {[%emt 0:00:06]} Nc5 {[%emt 0:00:34]} 16. Ne2 {[%emt 0:01:46]} Bxd2+ {[%emt 0:03:38]} 17. Kxd2 {[%emt 0:00:53]} Rb8 {[%emt 0:00:11]} 18. Rab1 {[%emt 0:05:39]} f6 {[%emt 0:02:05]} 19. exf6 {[%emt 0:03:05]} Rxf6 {[%emt 0:04:33]} 20. b4 {[%emt 0:03:14]} Nxd3 {[%emt 0:00:37]} 21. cxd3 {[%emt 0:00:28]} h5 {[%emt 0:02:44]} 22. Nd4 {[%emt 0:07:48]} Bd7 {[%emt 0:01:20]} 23. Nf3 {[%emt 0:01:25]} a5 {[%emt 0:09:44]} 24. bxa5 {[%emt 0:04:30]} Ra8 {[%emt 0:00:05]} 25. Rhe1 {[%emt 0:12:40]} Rxa5 {[%emt 0:03:01]} 26. Re7 {[%emt 0:01:34]} Rxa2+ {[%emt 0:00:18]} 27. Ke3 {[%emt 0:01:25]} Bxh3 {[%emt 0:05:50]} 28. Ng5 {[%emt 0:02:56]} Bg4 {[%emt 0:03:07]} 29. Rxc7 {[%emt 0:00:06]} d4+ {[%emt 0:08:54]} 30. Kxd4 {[%emt 0:04:51]} Rd6+ {[%emt 0:01:53]} 31. Kc5 {[%emt 0:02:26]} Rd5+ {[%emt 0:00:50]} 32. Kxc6 {[%emt 0:00:49]} Rd8 {[%emt 0:00:06]} 33. Rbb7 {[%emt 0:02:30]} Rc2+ {[%emt 0:00:20]} 34. Kb6 {[%emt 0:00:04]} Rb2+ {[%emt 0:00:17]} 35. Ka5 {[%emt 0:00:56]} Ra8+ {[%emt 0:01:40]} 36. Ra7 {[%emt 0:00:04]} Rab8 {[%emt 0:02:14]} 37. Rxg7+ {[%emt 0:01:20]} Kh8 {[%emt 0:00:09]} 38. Rh7+ 1/2-1/2

[Event "9th Amsterdam Science Park A 2019"]
[Site "Amsterdam"]
[Date "2019.07.08"]
[Round "3.4"]
[White "Ten Hertog, Hugo"]
[Black "De Groote, Ewoud"]
[Result "1-0"]
[ECO "C24"]
[WhiteElo "2484"]
[BlackElo "2225"]
[Annotator "ChessBase"]
[PlyCount "43"]
[EventDate "2019.07.06"]
[EventType "swiss"]
[EventCountry "NED"]
[SourceTitle "playchess.com"]
[Source "ChessBase"]
[SourceQuality "1"]
[TimeControl "40/5400+30:1800+30"]

1. e4 {[%emt 0:00:00]} e5 {[%emt 0:00:00]} 2. Bc4 {[%emt 0:02:48]} Nf6 {[%emt 0:00:00]} 3. d3 {[%emt 0:00:05]} Nc6 {[%emt 0:00:44]} 4. a3 {[%emt 0:00:12]} Be7 {[%emt 0:04:13]} 5. Nc3 {[%emt 0:00:26]} d6 {[%emt 0:04:07]} 6. Nge2 {[%emt 0:01:40]} Be6 {[%emt 0:04:26]} 7. Nd5 {[%emt 0:02:28]} O-O {[%emt 0:05:36]} 8. O-O {[%emt 0:01:32]} Qd7 {[%emt 0:18:56]} 9. f4 {[%emt 0:11:39]} Kh8 {[%emt 0:13:25]} 10. Ba2 {[%emt 0:09:09]} Rae8 {[%emt 0:06:09]} 11. c3 {[%emt 0:16:26]} Bd8 {[%emt 0:05:05]} 12. Ng3 {[%emt 0:23:30]} exf4 {[%emt 0:08:43]} 13. Rxf4 {[%emt 0:00:43]} Bxd5 {[%emt 0:01:59]} 14. exd5 {[%emt 0:00:23]} Ne5 {[%emt 0:01:52]} 15. d4 {[%emt 0:00:56]} Ng6 {[%emt 0:00:15]} 16. Rf1 {[%emt 0:00:22]} c6 {[%emt 0:02:21]} 17. Qa4 {[%emt 0:05:38]} Ne4 {[%emt 0:05:24]} 18. dxc6 {[%emt 0:02:54]} Qg4 {[%emt 0:08:24]} 19. cxb7 {[%emt 0:02:48]} Nxg3 {[%emt 0:02:41]} 20. hxg3 {[%emt 0:04:04]} Qxg3 {[%emt 0:00:45]} 21. Qxe8 {[%emt 0:03:33]} Rxe8 {[%emt 0:00:19]} 22. b8=Q {[%emt 0:00:06]} 1-0

[Event "9th Amsterdam Science Park A 2019"]
[Site "Amsterdam"]
[Date "2019.07.08"]
[Round "3.5"]
[White "Van Baar, Esper"]
[Black "Bosboom, Manuel"]
[Result "1-0"]
[ECO "C41"]
[WhiteElo "2108"]
[BlackElo "2418"]
[Annotator "NA"]
[PlyCount "123"]
[EventDate "2019.07.06"]
[EventType "swiss"]
[EventCountry "NED"]
[SourceTitle "playchess.com"]
[Source "ChessBase"]
[SourceQuality "1"]
[TimeControl "40/5400+30:1800+30"]

1. e4 {[%emt 0:00:00]} e5 {[%emt 0:00:52]} 2. Nf3 {[%emt 0:00:00]} d6 {[%emt 0:00:18]} 3. d4 {[%emt 0:00:08]} Qe7 {[%emt 0:00:33]} 4. Nc3 {[%emt 0:05:04]} c6 {[%emt 0:00:44]} 5. a4 {[%emt 0:04:24]} a5 {[%emt 0:04:13]} 6. dxe5 {[%emt 0:02:09]} dxe5 {[%emt 0:00:12]} 7. Bc4 {[%emt 0:01:31]} h6 {[%emt 0:00:26]} 8. b3 {[%emt 0:11:01]} Qf6 {[%emt 0:11:26]} 9. h3 {[%emt 0:06:52]} Bb4 {[%emt 0:08:55]} 10. Bd2 {[%emt 0:01:37]} Ne7 {[%emt 0:01:25]} 11. Na2 {[%emt 0:02:35]} Bxd2+ {[%emt 0:03:45]} 12. Qxd2 {[%emt 0:01:25]} O-O {[%emt 0:06:48]} 13. Rd1 {[%emt 0:12:05]} b5 {[%emt 0:06:31]} 14. axb5 {[%emt 0:03:01]} cxb5 {[%emt 0:00:18]} 15. Bxb5 {[%emt 0:00:23]} Ng6 {[%emt 0:03:34]} 16. Qd6 {[%emt 0:08:07]} Qf4 {[%emt 0:10:14]} 17. Nc3 {[%emt 0:01:18]} Na6 {[%emt 0:01:00]} 18. Bc6 {[%emt 0:03:54]} Nb4 {[%emt 0:05:19]} 19. Ne2 {[%emt 0:03:38]} Qxf3 {[%emt 0:13:37]} 20. gxf3 {[%emt 0:00:35]} Ra6 {[%emt 0:00:01]} 21. c4 {[%emt 0:04:24]} Rxc6 {[%emt 0:01:09]} 22. Qd2 {[%emt 0:00:31]} Nh4 {[%emt 0:00:18]} 23. Qc3 {[%emt 0:02:36]} f5 {[%emt 0:06:16]} 24. Ng1 {[%emt 0:03:06]} Rcf6 {[%emt 0:03:10]} 25. Rh2 {[%emt 0:01:43]} Rg6 {[%emt 0:01:34]} 26. Ke2 {[%emt 0:00:55]} Nc6 {[%emt 0:00:47]} 27. Qe3 {[%emt 0:04:01]} Nd4+ {[%emt 0:01:49]} 28. Rxd4 {[%emt 0:00:34]} exd4 {[%emt 0:00:16]} 29. Qf4 {[%emt 0:01:54]} Ng2 {[%emt 0:02:15]} 30. Qe5 {[%emt 0:03:04]} fxe4 {[%emt 0:00:30]} 31. fxe4 {[%emt 0:00:15]} d3+ {[%emt 0:01:52]} 32. Kxd3 {[%emt 0:02:01]} Ne1+ {[%emt 0:03:23]} 33. Ke2 {[%emt 0:01:47]} Rxg1 {[%emt 0:00:10]} 34. f4 {[%emt 0:00:26]} Nc2 {[%emt 0:02:26]} 35. Qd5+ {[%emt 0:02:30]} Kh7 {[%emt 0:00:01]} 36. Qc5 {[%emt 0:00:35]} Re1+ {[%emt 0:00:45]} 37. Kd2 {[%emt 0:00:03]} Rd8+ {[%emt 0:00:29]} 38. Kxc2 {[%emt 0:00:20]} Rxe4 {[%emt 0:00:08]} 39. Rd2 {[%emt 0:01:23]} Rde8 {[%emt 0:00:54]} 40. Qxa5 {[%emt 0:05:29]} Rxf4 {[%emt 0:00:17]} 41. Rd8 {[%emt 0:05:18]} Rxd8 {[%emt 0:05:17]} 42. Qxd8 {[%emt 0:00:06]} Bxh3 {[%emt 0:00:02]} 43. c5 {[%emt 0:01:52]} Bf5+ {[%emt 0:00:20]} 44. Kb2 {[%emt 0:01:08]} Rf2+ {[%emt 0:01:32]} 45. Ka3 {[%emt 0:00:45]} Rc2 {[%emt 0:01:40]} 46. b4 {[%emt 0:02:27]} Rc3+ {[%emt 0:03:10]} 47. Ka4 {[%emt 0:01:50]} h5 {[%emt 0:00:18]} 48. Kb5 {[%emt 0:03:30]} Rd3 {[%emt 0:04:18]} 49. Qg5 {[%emt 0:01:47]} Bg4 {[%emt 0:03:14]} 50. Kb6 {[%emt 0:01:47]} Rf3 {[%emt 0:00:22]} 51. c6 {[%emt 0:02:45]} Rf5 {[%emt 0:00:06]} 52. Qe7 {[%emt 0:00:39]} Rf6 {[%emt 0:00:19]} 53. b5 {[%emt 0:01:07]} Bf3 {[%emt 0:01:20]} 54. Ka7 {[%emt 0:03:37]} Rf4 {[%emt 0:09:21]} 55. c7 {[%emt 0:02:07]} Ra4+ {[%emt 0:00:07]} 56. Kb6 {[%emt 0:00:05]} Bg4 {[%emt 0:00:23]} 57. Qd8 {[%emt 0:01:05]} Kh6 {[%emt 0:01:30]} 58. c8=Q {[%emt 0:01:35]} Bxc8 {[%emt 0:00:06]} 59. Qxc8 {[%emt 0:00:09]} h4 {[%emt 0:00:06]} 60. Qc2 {[%emt 0:01:10]} Rf4 {[%emt 0:00:40]} 61. Ka7 {[%emt 0:01:09]} Rf7+ {[%emt 0:01:00]} 62. Ka6 1-0

[Event "9th Amsterdam Science Park A 2019"]
[Site "Amsterdam"]
[Date "2019.07.08"]
[Round "3.6"]
[White "Elgersma, Simon"]
[Black "Belous, Mikhail"]
[Result "0-1"]
[ECO "B90"]
[WhiteElo "2130"]
[BlackElo "2289"]
[Annotator "NA"]
[PlyCount "54"]
[EventDate "2019.07.06"]
[EventType "swiss"]
[EventCountry "NED"]
[SourceTitle "playchess.com"]
[Source "ChessBase"]
[SourceQuality "1"]
[TimeControl "40/5400+30:1800+30"]

1. e4 {[%emt 0:01:26]} c5 {[%emt 0:00:00]} 2. Nf3 {[%emt 0:00:13]} d6 {[%emt 0:00:00]} 3. d4 {[%emt 0:00:06]} cxd4 {[%emt 0:00:00]} 4. Nxd4 {[%emt 0:00:05]} Nf6 {[%emt 0:00:00]} 5. Nc3 {[%emt 0:00:07]} a6 {[%emt 0:00:00]} 6. Qd3 {[%emt 0:00:06]} Nbd7 {[%emt 0:06:33]} 7. Be2 {[%emt 0:00:38]} e6 {[%emt 0:05:57]} 8. O-O {[%emt 0:01:18]} b5 {[%emt 0:01:11]} 9. b4 {[%emt 0:00:25]} Bb7 {[%emt 0:01:47]} 10. a4 {[%emt 0:02:04]} bxa4 {[%emt 0:04:32]} 11. Rxa4 {[%emt 0:03:35]} Qc7 {[%emt 0:03:43]} 12. Bd2 {[%emt 0:12:12]} Be7 {[%emt 0:16:56]} 13. Rfa1 {[%emt 0:19:10]} O-O {[%emt 0:01:19]} 14. Qh3 {[%emt 0:14:00]} Nb6 {[%emt 0:12:49]} 15. Ra5 {[%emt 0:06:38]} Qc8 {[%emt 0:01:30]} 16. Rg5 {[%emt 0:05:09]} Nxe4 {[%emt 0:06:37]} 17. Bd3 {[%emt 0:07:23]} Nxg5 {[%emt 0:06:55]} 18. Bxg5 {[%emt 0:00:52]} f5 {[%emt 0:00:34]} 19. Bd2 {[%emt 0:05:03]} Nc4 {[%emt 0:03:13]} 20. Nb1 {[%emt 0:02:52]} Ne5 {[%emt 0:05:51]} 21. Be2 {[%emt 0:00:47]} Bf6 {[%emt 0:01:53]} 22. Bc3 {[%emt 0:03:46]} Nc6 {[%emt 0:02:06]} 23. Nf3 {[%emt 0:05:55]} Bxc3 {[%emt 0:00:46]} 24. Nxc3 {[%emt 0:00:07]} Nxb4 {[%emt 0:00:18]} 25. Ng5 {[%emt 0:00:30]} h6 {[%emt 0:00:25]} 26. Rb1 {[%emt 0:00:23]} a5 {[%emt 0:01:14]} 27. Bh5 {[%emt 0:01:29]} Rf6 {[%emt 0:00:38]} 0-1

[Event "9th Amsterdam Science Park A 2019"]
[Site "Amsterdam"]
[Date "2019.07.08"]
[Round "3.7"]
[White "Elgersma, Onno"]
[Black "Ballon, Guenther"]
[Result "1-0"]
[ECO "B41"]
[WhiteElo "2232"]
[BlackElo "2089"]
[Annotator "NA"]
[PlyCount "39"]
[EventDate "2019.07.06"]
[EventType "swiss"]
[EventCountry "NED"]
[SourceTitle "playchess.com"]
[Source "ChessBase"]
[SourceQuality "1"]
[TimeControl "40/5400+30:1800+30"]

1. e4 {[%emt 0:00:44]} c5 {[%emt 0:00:00]} 2. Nf3 {[%emt 0:00:10]} e6 {[%emt 0:00:13]} 3. d4 {[%emt 0:00:05]} cxd4 {[%emt 0:00:06]} 4. Nxd4 {[%emt 0:00:05]} a6 {[%emt 0:00:28]} 5. Qd3 {[%emt 0:00:06]} Nc6 {[%emt 0:02:36]} 6. Nxc6 {[%emt 0:00:39]} dxc6 {[%emt 0:00:21]} 7. Qg3 {[%emt 0:06:47]} c5 {[%emt 0:16:30]} 8. a4 {[%emt 0:05:36]} Bd7 {[%emt 0:04:07]} 9. Nc3 {[%emt 0:11:56]} Ne7 {[%emt 0:08:48]} 10. Bg5 {[%emt 0:13:00]} h6 {[%emt 0:08:18]} 11. Bxe7 Qxe7 {[%emt 0:00:28]} 12. Rd1 {[%emt 0:06:11]} Bc6 {[%emt 0:02:29]} 13. h4 {[%emt 0:03:22]} h5 {[%emt 0:06:18]} 14. Bc4 {[%emt 0:08:06]} Rc8 {[%emt 0:07:28]} 15. O-O {[%emt 0:02:04]} g6 {[%emt 0:05:16]} 16. Nd5 {[%emt 0:04:42]} exd5 {[%emt 0:03:35]} 17. exd5 {[%emt 0:00:23]} Qc7 {[%emt 0:06:56]} 18. Rfe1+ {[%emt 0:02:51]} Kd7 {[%emt 0:01:34]} 19. Qh3+ {[%emt 0:00:42]} Kd6 {[%emt 0:01:37]} 20. Qe6+ {[%emt 0:04:03]} 1-0

[Event "9th Amsterdam Science Park A 2019"]
[Site "Amsterdam"]
[Date "2019.07.08"]
[Round "3.8"]
[White "Baarslag, Ed"]
[Black "Cornelisse, Ticho"]
[Result "1-0"]
[ECO "C00"]
[WhiteElo "2220"]
[BlackElo "2067"]
[Annotator "NA"]
[PlyCount "123"]
[EventDate "2019.07.06"]
[EventType "swiss"]
[EventCountry "NED"]
[SourceTitle "playchess.com"]
[Source "ChessBase"]
[SourceQuality "1"]
[TimeControl "40/5400+30:1800+30"]

1. e4 {[%emt 0:00:02]} e6 {[%emt 0:00:00]} 2. d3 {[%emt 0:00:37]} d5 {[%emt 0:01:42]} 3. Nd2 {[%emt 0:00:20]} Nf6 {[%emt 0:01:07]} 4. Ngf3 {[%emt 0:01:42]} b6 {[%emt 0:03:50]} 5. e5 {[%emt 0:07:16]} Nfd7 {[%emt 0:00:17]} 6. g3 {[%emt 0:00:40]} c5 {[%emt 0:00:28]} 7. c3 {[%emt 0:03:02]} Ba6 {[%emt 0:01:17]} 8. Be2 {[%emt 0:06:58]} Nc6 {[%emt 0:06:31]} 9. O-O {[%emt 0:05:00]} Be7 {[%emt 0:02:59]} 10. d4 {[%emt 0:10:15]} Bxe2 {[%emt 0:00:39]} 11. Qxe2 {[%emt 0:00:02]} O-O {[%emt 0:06:28]} 12. Re1 {[%emt 0:05:26]} Qc7 {[%emt 0:02:02]} 13. Nf1 {[%emt 0:01:24]} Rae8 {[%emt 0:07:03]} 14. Bf4 {[%emt 0:02:51]} Qb7 {[%emt 0:03:20]} 15. Rad1 {[%emt 0:04:09]} b5 {[%emt 0:02:02]} 16. Ne3 {[%emt 0:03:31]} a5 {[%emt 0:05:26]} 17. Bg5 {[%emt 0:03:19]} b4 {[%emt 0:11:20]} 18. Ng4 {[%emt 0:06:14]} a4 {[%emt 0:21:26]} 19. a3 {[%emt 0:16:30]} bxa3 {[%emt 0:07:02]} 20. bxa3 {[%emt 0:00:12]} Rb8 {[%emt 0:00:13]} 21. Qe3 {[%emt 0:03:43]} Qb3 {[%emt 0:01:40]} 22. Bf6 {[%emt 0:04:35]} Nxf6 {[%emt 0:05:20]} 23. exf6 {[%emt 0:00:22]} Bxf6 {[%emt 0:02:03]} 24. Nxf6+ {[%emt 0:00:43]} gxf6 {[%emt 0:00:04]} 25. Qh6 {[%emt 0:01:07]} Qc2 {[%emt 0:01:44]} 26. Qxf6 {[%emt 0:00:48]} Qg6 {[%emt 0:00:49]} 27. Qf4 {[%emt 0:00:22]} Rb3 {[%emt 0:00:50]} 28. Qd6 {[%emt 0:02:30]} Qf6 {[%emt 0:04:05]} 29. Nd2 {[%emt 0:01:37]} Rb6 {[%emt 0:01:01]} 30. Qxc5 {[%emt 0:01:10]} Rfb8 {[%emt 0:00:32]} 31. Re3 {[%emt 0:01:17]} Qe7 {[%emt 0:01:17]} 32. c4 {[%emt 0:02:16]} Qxc5 {[%emt 0:00:47]} 33. dxc5 {[%emt 0:00:03]} d4 {[%emt 0:00:27]} 34. cxb6 {[%emt 0:01:56]} dxe3 {[%emt 0:00:04]} 35. fxe3 {[%emt 0:00:08]} Rxb6 {[%emt 0:00:35]} 36. Rb1 {[%emt 0:00:09]} Ra6 {[%emt 0:00:31]} 37. Ne4 {[%emt 0:02:53]} Ne5 {[%emt 0:00:35]} 38. Rb8+ {[%emt 0:01:45]} Kg7 {[%emt 0:00:06]} 39. c5 {[%emt 0:01:40]} Rc6 {[%emt 0:01:00]} 40. Rb6 {[%emt 0:00:30]} Kf8 {[%emt 0:00:28]} 41. Rxc6 {[%emt 0:07:49]} Nxc6 {[%emt 0:00:09]} 42. Nc3 {[%emt 0:00:20]} Ne5 {[%emt 0:00:23]} 43. Nxa4 {[%emt 0:01:33]} Nc4 {[%emt 0:00:03]} 44. Kf2 {[%emt 0:00:21]} Nxa3 {[%emt 0:00:21]} 45. Kf3 {[%emt 0:00:32]} Nb5 {[%emt 0:05:59]} 46. h4 {[%emt 0:03:12]} Ke7 {[%emt 0:04:53]} 47. Kf4 {[%emt 0:01:15]} f6 {[%emt 0:00:28]} 48. Kg4 {[%emt 0:04:01]} Kf7 {[%emt 0:00:17]} 49. Kh5 {[%emt 0:02:18]} Kg7 {[%emt 0:02:07]} 50. c6 {[%emt 0:00:45]} Nc7 {[%emt 0:00:50]} 51. e4 {[%emt 0:01:05]} h6 {[%emt 0:01:05]} 52. Nc5 {[%emt 0:01:04]} Kh7 {[%emt 0:04:41]} 53. Kg4 {[%emt 0:03:55]} Kg6 {[%emt 0:00:23]} 54. Kf4 {[%emt 0:00:48]} Kf7 {[%emt 0:01:02]} 55. Kg4 {[%emt 0:00:39]} Kg6 {[%emt 0:00:20]} 56. Nb7 {[%emt 0:00:42]} Kf7 {[%emt 0:08:16]} 57. Kh5 {[%emt 0:01:12]} Kg7 {[%emt 0:00:09]} 58. Nd8 {[%emt 0:00:08]} f5 {[%emt 0:05:32]} 59. Nxe6+ {[%emt 0:04:34]} Nxe6 {[%emt 0:00:05]} 60. exf5 {[%emt 0:00:06]} Nc7 {[%emt 0:00:51]} 61. g4 {[%emt 0:00:52]} Nd5 {[%emt 0:01:52]} 62. g5 {[%emt 0:00:07]} 1-0